fUST/lending_fUST_20240901
["ID","MTS","AMOUNT","RATE_DAILY","PERIOD"]
[336802907,1725171045352,-285.046924,0.00032328,7]
[336802908,1725171045361,-500.0,0.00032328,31]
[336802909,1725171045370,-285.046924,0.00032328,7]
[336802910,1725171045380,-285.046924,0.00032328,7]
[336802911,1725171045389,-500.0,0.00032328,31]
[336802912,1725171045398,-500.0,0.00032328,31]
[336802913,1725171045407,-500.0,0.00032328,31]
[336802914,1725171045417,-503.40801849,0.00032328,31]
[336802915,1725171045426,-459.251322,0.00032328,7]
[336802916,1725171045436,-459.251322,0.00032328,7]
[336802917,1725171045446,-500.0,0.00032328,31]
[336802918,1725171045455,-459.251322,0.00032328,7]
[336802919,1725171045464,-1134.432576,0.00032328,7]
[336802920,1725171045474,-459.251322,0.00032328,7]
[336802921,1725171045483,-1134.432576,0.00032328,7]
[336802922,1725171045492,-500.0,0.00032328,31]
[336802923,1725171045502,-500.0,0.00032328,31]
[336802924,1725171045514,-504.84909232,0.00032328,31]
[336802925,1725171045523,-500.0,0.00032328,31]
[336802926,1725171045533,-265.899938,0.00032328,7]
[336802927,1725171045543,-1134.432576,0.00032328,7]
[336802928,1725171045552,-1134.432576,0.00032328,7]
[336802929,1725171045561,-500.0,0.00032328,31]
[336802931,1725171045670,-500.0,0.00032328,31]
[336802932,1725171045701,-500.64340672,0.00032328,31]
[336802934,1725171045711,-151.0,0.00032328,7]
[336802936,1725171045720,-151.0,0.00032328,7]
[336802938,1725171045729,-151.0,0.00032328,7]
[336802940,1725171045738,-500.0,0.00032328,31]
[336802942,1725171045748,-151.0,0.00032328,7]
[336802944,1725171045757,-500.0,0.00032328,31]
[336802946,1725171045766,-198.414131,0.00032328,7]
[336802948,1725171045775,-500.0,0.00032328,21]
[336802950,1725171045785,-1006.98269716,0.00032328,31]
[336802952,1725171045794,-500.0,0.00032328,31]
[336802954,1725171045804,-227.68,0.00032328,31]
[336802956,1725171045813,-500.0,0.00032328,31]
[336802958,1725171045822,-222.35690471,0.00032328,31]
[336802960,1725171045831,-152.541895,0.00032328,7]
[336802962,1725171045840,-501.59607603,0.00032328,31]
[336802964,1725171045850,-645.17338,0.00032328,7]
[336802965,1725171045859,-500.0,0.00032328,31]
[336802966,1725171045869,-645.17338,0.00032328,7]
[336802967,1725171045879,-500.0,0.00032328,31]
[336802968,1725171045888,-500.0,0.00032328,31]
[336802969,1725171045897,-599.71086887,0.00032328,31]
[336802971,1725171045907,-645.17338,0.00032328,7]
[336802973,1725171045917,-645.17338,0.00032328,7]
[336802974,1725171045926,-151.0,0.00032328,7]
[336802975,1725171045935,-151.0,0.00032328,7]
[336802976,1725171045945,-151.0,0.00032328,7]
[336802977,1725171045954,-500.0,0.00032328,31]
[336802978,1725171045964,-500.0,0.00032328,31]
[336802979,1725171045974,-500.0,0.00032328,31]
[336802980,1725171045983,-500.0,0.00032328,31]
[336802981,1725171045992,-500.0,0.00032328,31]
[336802982,1725171046002,-500.0,0.00032328,31]
[336802983,1725171046012,-500.0,0.00032328,31]
[336802984,1725171046021,-259.03399473,0.00032328,31]
[336802985,1725171046030,-151.0,0.00032328,7]
[336802986,1725171046039,-152.36822,0.00032328,7]
[336802987,1725171046049,-500.0,0.00032328,31]
[336802988,1725171046059,-500.0,0.00032328,31]
[336802989,1725171046069,-500.0,0.00032328,31]
[336802990,1725171046078,-151.0,0.00032328,7]
[336802991,1725171046088,-151.0,0.00032328,7]
[336802993,1725171046097,-151.0,0.00032328,7]
[336802994,1725171046107,-1844.030916,0.00032328,7]
[336802995,1725171046116,-1844.030916,0.00032328,7]
[336802996,1725171046127,-500.0,0.00032328,31]
[336802997,1725171046138,-1844.030916,0.00032328,7]
[336802998,1725171046149,-453.77088718,0.00032328,31]
[336802999,1725171046159,-1844.030916,0.00032328,7]
[336803000,1725171046168,-500.0,0.00032328,31]
[336803001,1725171046179,-500.0,0.00032328,31]
[336803002,1725171046188,-173.4,0.00032328,31]
[336803003,1725171046197,-236.862079,0.00032328,7]
[336803004,1725171046207,-236.862079,0.00032328,7]
[336803005,1725171046216,-236.862079,0.00032328,7]
[336803006,1725171046226,-236.862079,0.00032328,7]
[336803008,1725171046236,-154.683982,0.00032328,7]
[336803010,1725171046246,-154.683982,0.00032328,7]
[336803012,1725171046256,-154.683982,0.00032328,7]
[336803013,1725171046265,-500.0,0.00032328,31]
[336803015,1725171046275,-500.0,0.00032328,31]
[336803017,1725171046285,-504.12926782,0.00032328,31]
[336803019,1725171046295,-11239.57,0.00032328,31]
[336803022,1725171046305,-11239.57,0.00032328,31]
[336803024,1725171046315,-11239.57,0.00032328,31]
[336803025,1725171046324,-10920.72637079,0.00032328,31]
[336803029,1725171046374,-318.84362921,0.00032328,31]
[336803030,1725171046383,-154.683982,0.00032328,7]
[336803031,1725171046393,-597.765763,0.00032328,7]
[336803032,1725171046403,-11239.57,0.00032328,31]
[336803033,1725171046413,-154.683982,0.00032328,7]
[336803034,1725171046423,-597.765763,0.00032328,7]
[336803035,1725171046433,-11239.57,0.00032328,31]
[336803036,1725171046442,-154.683982,0.00032328,7]
[336803037,1725171046451,-11239.57,0.00032328,31]
[336803038,1725171046461,-597.765763,0.00032328,7]
[336803039,1725171046470,-597.765763,0.00032328,7]
[336803040,1725171046480,-597.765763,0.00032328,7]
[336803041,1725171046489,-597.765763,0.00032328,7]
[336803042,1725171046501,-500.0,0.00032328,31]
[336803043,1725171046511,-500.0,0.00032328,31]
[336803044,1725171046520,-165.974211,0.00032328,7]
[336803045,1725171046530,-500.0,0.00032328,31]
[336803046,1725171046540,-498.64,0.00032328,31]
[336803047,1725171046551,-165.974211,0.00032328,7]
[336803048,1725171046560,-165.974211,0.00032328,7]
[336803049,1725171046569,-500.0,0.00032328,31]
[336803050,1725171046580,-165.974211,0.00032328,7]
[336803051,1725171046590,-165.974211,0.00032328,7]
[336803052,1725171046600,-165.974211,0.00032328,7]
[336803053,1725171046609,-500.0,0.00032328,31]
[336803054,1725171046619,-504.42471636,0.00032328,31]
[336803055,1725171046629,-151.0,0.00032328,7]
[336803056,1725171046639,-151.0,0.00032328,7]
[336803057,1725171046649,-151.0,0.00032328,7]
[336803058,1725171046659,-500.0,0.00032328,31]
[336803059,1725171046668,-500.0,0.00032328,31]
[336803060,1725171046678,-275.027831,0.00032328,7]
[336803061,1725171046688,-500.0,0.00032328,31]
[336803062,1725171046698,-393.92,0.00032328,31]
[336803063,1725171046707,-501.65780439,0.00032328,31]
[336803064,1725171046717,-151.0,0.00032328,7]
[336803065,1725171046726,-151.0,0.00032328,7]
[336803066,1725171046736,-151.0,0.00032328,7]
[336803067,1725171046746,-151.0,0.00032328,7]
[336803068,1725171046755,-151.0,0.00032328,7]
[336803069,1725171046765,-151.0,0.00032328,7]
[336803070,1725171046774,-500.0,0.00032328,31]
[336803071,1725171046783,-515.96805516,0.00032328,31]
[336803072,1725171046793,-500.0,0.00032328,31]
[336803073,1725171046802,-857.918373,0.00032328,7]
[336803074,1725171046812,-857.918373,0.00032328,7]
[336803075,1725171046821,-857.918373,0.00032328,7]
[336803076,1725171046831,-506.05437415,0.00032328,31]
[336803077,1725171046840,-857.918373,0.00032328,7]
[336803078,1725171046850,-857.918373,0.00032328,7]
[336803079,1725171046860,-857.918373,0.00032328,7]
[336803080,1725171046870,-505.43274907,0.00032328,31]
[336803081,1725171046879,-1256.543019,0.00032328,7]
[336803082,1725171046889,-1256.543019,0.00032328,7]
[336803083,1725171046898,-1256.543019,0.00032328,7]
[336803084,1725171046910,-1256.543019,0.00032328,7]
[336803085,1725171046919,-1256.543019,0.00032328,7]
[336803086,1725171046930,-1256.543019,0.00032328,7]
[336803087,1725171046939,-500.0,0.00032328,31]
[336803088,1725171046949,-151.0,0.00032328,7]
[336803089,1725171046959,-151.784502,0.00032328,7]
[336803090,1725171046968,-151.0,0.00032328,7]
[336803091,1725171046978,-151.0,0.00032328,7]
[336803092,1725171046987,-152.36146,0.00032328,7]
[336803093,1725171046997,-500.0,0.00032328,31]
[336803094,1725171047007,-4644.292046,0.00032328,7]
[336803095,1725171047016,-4644.292046,0.00032328,7]
[336803096,1725171047025,-4644.292046,0.00032328,7]
[336803097,1725171047034,-4644.292046,0.00032328,7]
[336803098,1725171047043,-4644.292046,0.00032328,7]
[336803099,1725171047054,-1816.83373744,0.00032328,7]
[336803100,1725171047067,-2827.45830856,0.00032328,7]
[336803101,1725171047079,-500.0,0.00032328,31]
[336803102,1725171047089,-1323.330773,0.00032328,7]
[336803103,1725171047099,-1323.330773,0.00032328,7]
[336803104,1725171047110,-1323.330773,0.00032328,7]
[336803105,1725171047120,-1323.330773,0.00032328,7]
[336803106,1725171047129,-1323.330773,0.00032328,7]
[336803107,1725171047139,-1323.330773,0.00032328,7]
[336803108,1725171047148,-1323.330773,0.00032328,7]
[336803109,1725171047157,-1323.330773,0.00032328,7]
[336803110,1725171047171,-500.0,0.00032328,31]
[336803111,1725171047181,-434.972616,0.00032328,7]
[336803112,1725171047190,-434.972616,0.00032328,7]
[336803113,1725171047199,-443.962807,0.00032328,7]
[336803114,1725171047209,-434.972616,0.00032328,7]
[336803115,1725171047218,-443.962807,0.00032328,7]
[336803116,1725171047229,-434.972616,0.00032328,7]
[336803117,1725171047238,-443.962807,0.00032328,7]
[336803118,1725171047247,-443.962807,0.00032328,7]
[336803119,1725171047256,-434.972616,0.00032328,7]
[336803120,1725171047266,-434.972616,0.00032328,7]
[336803121,1725171047275,-443.962807,0.00032328,7]
[336803122,1725171047285,-434.972616,0.00032328,7]
[336803123,1725171047294,-434.972616,0.00032328,7]
[336803124,1725171047404,-443.962807,0.00032328,7]
[336803125,1725171047422,-443.962807,0.00032328,7]
[336803126,1725171047432,-443.962807,0.00032328,7]
[336803127,1725171047441,-151.0,0.00032328,2]
[336803128,1725171047451,-515.77619567,0.00032328,31]
[336803129,1725171047460,-151.0,0.00032328,2]
[336803130,1725171047470,-151.0,0.00032328,2]
[336803131,1725171047481,-151.0,0.00032328,2]
[336803132,1725171047490,-500.0,0.00032328,31]
[336803133,1725171047501,-501.83729445,0.00032328,2]
[336803134,1725171047513,-151.0,0.00032328,7]
[336803135,1725171047522,-500.0,0.00032328,31]
[336803136,1725171047532,-151.0,0.00032328,7]
[336803137,1725171047542,-151.0,0.00032328,7]
[336803138,1725171047551,-151.0,0.00032328,7]
[336803139,1725171047561,-500.0,0.00032328,31]
[336803140,1725171047571,-500.0,0.00032328,31]
[336803141,1725171047580,-282.000295,0.00032328,7]
[336803142,1725171047592,-500.0,0.00032328,31]
[336803143,1725171047602,-508.67176697,0.00032328,31]
[336803144,1725171047612,-500.0,0.00032328,31]
[336803145,1725171047622,-500.0,0.00032328,31]
[336803146,1725171047631,-151.0,0.00032328,7]
[336803147,1725171047642,-151.0,0.00032328,7]
[336803148,1725171047652,-174.138355,0.00032328,7]
[336803149,1725171047664,-500.0,0.00032328,31]
[336803150,1725171047675,-5195.10171019,0.00032334,2]
[336803151,1725171047684,-500.0,0.00032348,31]
[336803152,1725171047695,-500.0,0.00032373,5]
[336803153,1725171047706,-430.53258919,0.00032373,5]
[336803154,1725171047715,-501.0549676,0.00032373,5]
[336803155,1725171047724,-330.49259433,0.00032373,2]
[336803156,1725171047734,-501.10918219,0.00032373,5]
[336803157,1725171047743,-947.13487866,0.000324,2]
[336803158,1725171047753,-500.0,0.00032402,31]
[336803159,1725171047762,-336.072539,0.00032403,7]
[336803160,1725171047771,-151.0,0.00032403,7]
[336803161,1725171047780,-336.072539,0.00032403,7]
[336803162,1725171047789,-151.0,0.00032403,7]
[336803163,1725171047798,-467.326073,0.00032403,7]
[336803164,1725171047807,-467.326073,0.00032403,7]
[336803165,1725171047816,-151.608331,0.00032403,7]
[336803166,1725171047825,-151.0,0.00032403,7]
[336803167,1725171047835,-151.0,0.00032403,7]
[336803168,1725171047845,-151.0,0.00032403,7]
[336803169,1725171047854,-500.0,0.00032461,7]
[336803170,1725171047863,-151.0,0.00032484,7]
[336803171,1725171047872,-285.046924,0.00032484,7]
[336803172,1725171047882,-285.046924,0.00032484,7]
[336803173,1725171047891,-459.251322,0.00032484,7]
[336803174,1725171047900,-459.251322,0.00032484,7]
[336803175,1725171047910,-1134.432576,0.00032484,7]
[336803176,1725171047919,-1134.432576,0.00032484,7]
[336803177,1725171047929,-151.0,0.00032484,7]
[336803178,1725171047939,-645.17338,0.00032484,7]
[336803179,1725171047948,-645.17338,0.00032484,7]
[336803180,1725171047957,-1844.030916,0.00032484,7]
[336803181,1725171047967,-1844.030916,0.00032484,7]
[336803182,1725171047976,-236.862079,0.00032484,7]
[336803183,1725171047985,-236.862079,0.00032484,7]
[336803184,1725171047995,-165.974211,0.00032484,7]
[336803185,1725171048004,-165.974211,0.00032484,7]
[336803186,1725171048013,-151.0,0.00032484,7]
[336803187,1725171048023,-151.0,0.00032484,7]
[336803188,1725171048033,-151.0,0.00032484,7]
[336803189,1725171048042,-857.918373,0.00032484,7]
[336803190,1725171048053,-857.918373,0.00032484,7]
[336803191,1725171048062,-1256.543019,0.00032484,7]
[336803192,1725171048071,-1256.543019,0.00032484,7]
[336803193,1725171048082,-4644.292046,0.00032484,7]
[336803194,1725171048091,-4644.292046,0.00032484,7]
[336803195,1725171048101,-11239.57,0.00032499,31]
[336803196,1725171048110,-35000.0,0.000325,5]
[336803197,1725171048120,-151.0,0.000325,7]
[336803198,1725171048130,-151.0,0.000325,7]
[336803199,1725171048140,-151.0,0.000325,7]
[336803200,1725171048150,-151.0,0.000325,7]
[336803201,1725171048160,-151.0,0.000325,7]
[336803202,1725171048169,-194.319018,0.000325,7]
[336803203,1725171048179,-194.319018,0.000325,7]
[336803204,1725171048188,-151.0,0.000325,7]
[336803205,1725171048197,-907.562946,0.000325,7]
[336803206,1725171048206,-907.562946,0.000325,7]
[336803207,1725171048216,-151.0,0.000325,7]
[336803208,1725171048226,-151.0,0.000325,7]
[336803209,1725171048239,-154.683982,0.000325,7]
[336803210,1725171048248,-154.683982,0.000325,7]
[336803211,1725171048258,-597.765763,0.000325,7]
[336803212,1725171048267,-597.765763,0.000325,7]
[336803213,1725171048277,-1323.330773,0.000325,7]
[336803214,1725171048286,-1323.330773,0.000325,7]
[336803215,1725171048295,-434.972616,0.000325,7]
[336803216,1725171048305,-443.962807,0.000325,7]
[336803217,1725171048315,-434.972616,0.000325,7]
[336803218,1725171048324,-443.962807,0.000325,7]
[336803219,1725171048334,-151.0,0.000325,2]
[336803220,1725171048343,-151.0,0.000325,7]
[336803221,1725171048353,-151.0,0.00032501,7]
[336803222,1725171048362,-500.0,0.00032501,31]
[336803223,1725171048372,-151.0,0.00032501,7]
[336803224,1725171048382,-151.0,0.00032501,7]
[336803225,1725171048391,-164.725799,0.00032501,7]
[336803226,1725171048399,-164.725799,0.00032501,7]
[336803227,1725171048409,-500.0,0.00032501,31]
[336803228,1725171048418,-436.34496585,0.00032501,2]
[336803229,1725171048428,-200.0,0.00032501,7]
[336803230,1725171048437,-165.974211,0.00032501,7]
[336803231,1725171048447,-165.974211,0.00032501,7]
[336803232,1725171048456,-151.0,0.00032501,7]
[336803233,1725171048466,-151.0,0.00032501,7]
[336803234,1725171048475,-151.0,0.00032501,7]
[336803235,1725171048484,-857.918373,0.00032501,7]
[336803236,1725171048495,-857.918373,0.00032501,7]
[336803237,1725171048507,-1256.543019,0.00032501,7]
[336803238,1725171048516,-1256.543019,0.00032501,7]
[336803239,1725171048525,-4644.292046,0.00032501,7]
[336803240,1725171048535,-4644.292046,0.00032501,7]
[336803241,1725171048545,-2000.0,0.00032519,90]
[336803242,1725171048554,-500.0,0.00032519,31]
[336803243,1725171048563,-500.0,0.00032519,31]
[336803244,1725171048573,-515.64292648,0.0003252,31]
[336803245,1725171048583,-500.0,0.00032565,7]
[336803246,1725171048593,-503.15110239,0.00032565,7]
[336803247,1725171048603,-947.1348786,0.00032567,2]
[336803248,1725171048613,-11239.57,0.00032572,31]
[336803249,1725171048623,-200.53525544,0.00032573,5]
[336803250,1725171048632,-349.44910089,0.00032573,5]
[336803251,1725171048642,-659.49722443,0.00032581,11]
[336803252,1725171048652,-256.36,0.00032581,31]
[336803253,1725171048662,-500.0,0.00032581,31]
[336803254,1725171048672,-500.0,0.00032581,31]
[336803255,1725171048681,-500.0,0.00032581,31]
[336803256,1725171048691,-500.0,0.00032581,31]
[336803257,1725171048701,-721.01,0.00032581,31]
[336803258,1725171048710,-151.0,0.00032581,7]
[336803259,1725171048720,-500.0,0.00032581,31]
[336803260,1725171048729,-262.150775,0.00032581,7]
[336803261,1725171048739,-151.0,0.00032581,7]
[336803262,1725171048748,-500.0,0.00032581,31]
[336803263,1725171048757,-242.875062,0.00032581,3]
[336803264,1725171048766,-242.875062,0.00032581,3]
[336803265,1725171048776,-151.0,0.00032581,7]
[336803266,1725171048786,-151.0,0.00032581,7]
[336803267,1725171048796,-151.0,0.00032581,7]
[336803268,1725171048806,-151.0,0.00032581,7]
[336803269,1725171048815,-285.046924,0.00032581,7]
[336803270,1725171048825,-285.046924,0.00032581,7]
[336803271,1725171048835,-459.251322,0.00032581,7]
[336803272,1725171048845,-459.251322,0.00032581,7]
[336803273,1725171048855,-1134.432576,0.00032581,7]
[336803274,1725171048864,-1134.432576,0.00032581,7]
[336803275,1725171048874,-151.0,0.00032581,7]
[336803276,1725171048981,-645.17338,0.00032581,7]
[336803277,1725171048991,-645.17338,0.00032581,7]
[336803278,1725171049001,-1844.030916,0.00032581,7]
[336803279,1725171049010,-1844.030916,0.00032581,7]
[336803280,1725171049020,-236.862079,0.00032581,7]
[336803281,1725171049029,-236.862079,0.00032581,7]
[336803282,1725171049038,-500.0,0.0003259,31]
[336803283,1725171049048,-500.0,0.0003259,31]
[336803284,1725171049058,-200.0,0.0003259,7]
[336803285,1725171049067,-500.0,0.00032591,31]
[336803286,1725171049078,-231.07,0.00032591,31]
[336803287,1725171049088,-500.0,0.00032591,31]
[336803288,1725171049098,-500.0,0.00032591,31]
[336803289,1725171049108,-500.0,0.00032591,31]
[336803290,1725171049118,-500.0,0.00032591,31]
[336803291,1725171049127,-500.0,0.00032591,31]
[336803292,1725171049137,-2000.0,0.00032591,90]
[336803293,1725171049146,-500.0,0.00032591,31]
[336803294,1725171049157,-721.01,0.00032591,31]
[336803295,1725171049167,-500.0,0.00032591,31]
[336803296,1725171049177,-500.0,0.00032591,31]
[336803297,1725171049187,-500.0,0.00032591,31]
[336803298,1725171049196,-336.072539,0.00032591,7]
[336803299,1725171049206,-151.0,0.00032591,7]
[336803300,1725171049217,-336.072539,0.00032591,7]
[336803301,1725171049226,-151.0,0.00032591,7]
[336803302,1725171049235,-467.326073,0.00032591,7]
[336803303,1725171049245,-467.326073,0.00032591,7]
[336803304,1725171049255,-1100.67799002,0.00032591,120]
[336803305,1725171049264,-500.0,0.00032591,31]
[336803306,1725171049273,-151.0,0.00032591,7]
[336803307,1725171049283,-158.240593,0.00032591,7]
[336803308,1725171049292,-154.683982,0.00032591,7]
[336803309,1725171049302,-154.683982,0.00032591,7]
[336803310,1725171049311,-597.765763,0.00032591,7]
[336803311,1725171049320,-597.765763,0.00032591,7]
[336803312,1725171049330,-1323.330773,0.00032591,7]
[336803313,1725171049339,-1323.330773,0.00032591,7]
[336803314,1725171049349,-434.972616,0.00032591,7]
[336803315,1725171049359,-102.19090311,0.00032591,7]
[336803326,1725171411128,163.83441,0.00014247,2]
[336803338,1725171791963,200.0,0.00014,2]
[336803339,1725171801008,3262.40316388,0.0002,2]
[336803340,1725171801044,3387.47683612,0.0002,2]
[336803351,1725172087175,163.83441,0.00014247,2]
[336803356,1725172119427,192.26180968,0.0002,2]
[336803396,1725172238465,-1000.0,0.00021391,2]
[336803397,1725172238475,-487.34487856,0.00023,2]
[336803398,1725172238484,-218.70064057,0.000249,2]
[336803399,1725172238494,-218.70064057,0.0002499,2]
[336803400,1725172238503,-300.0,0.00024999,2]
[336803401,1725172238513,-396.25394111,0.00024999,2]
[336803402,1725172238522,-220.39826909,0.00024999,2]
[336803403,1725172238531,-143.6016301,0.00024999,2]
[336803404,1725172238543,-245.2327846,0.00024999,2]
[336803405,1725172238552,-500.0,0.00024999,2]
[336803406,1725172238561,-178.2070288,0.00024999,2]
[336803407,1725172238571,-500.0,0.00024999,2]
[336803408,1725172238580,-500.0,0.00024999,2]
[336803409,1725172238590,-500.0,0.00024999,2]
[336803410,1725172238599,-210.53126391,0.00024999,2]
[336803411,1725172238609,-500.0,0.00024999,2]
[336803412,1725172238619,-500.0,0.00024999,2]
[336803413,1725172238628,-500.0,0.00024999,2]
[336803414,1725172238638,-500.0,0.00024999,2]
[336803415,1725172238647,-500.0,0.00024999,2]
[336803416,1725172238657,-500.0,0.00024999,2]
[336803417,1725172238667,-500.0,0.00024999,2]
[336803418,1725172238676,-500.0,0.00024999,2]
[336803419,1725172238686,-500.0,0.00024999,2]
[336803420,1725172238696,-500.0,0.00024999,2]
[336803421,1725172238706,-500.0,0.00024999,2]
[336803422,1725172238715,-500.0,0.00024999,2]
[336803423,1725172238725,-500.0,0.00024999,2]
[336803424,1725172238734,-500.0,0.00024999,2]
[336803425,1725172238743,-500.0,0.00024999,2]
[336803426,1725172238753,-500.0,0.00024999,2]
[336803427,1725172238762,-500.0,0.00024999,2]
[336803428,1725172238771,-500.0,0.00024999,2]
[336803429,1725172238781,-500.0,0.00024999,2]
[336803430,1725172238790,-500.0,0.00024999,2]
[336803431,1725172238799,-500.0,0.00024999,2]
[336803432,1725172238808,-500.0,0.00024999,2]
[336803433,1725172238817,-500.0,0.00024999,2]
[336803434,1725172238827,-500.0,0.00024999,2]
[336803435,1725172238836,-500.0,0.00024999,2]
[336803436,1725172238846,-500.0,0.00024999,2]
[336803437,1725172238856,-500.0,0.00024999,2]
[336803438,1725172238866,-500.0,0.00024999,2]
[336803439,1725172238876,-500.0,0.00024999,2]
[336803440,1725172238885,-500.0,0.00024999,2]
[336803441,1725172238894,-500.0,0.00024999,2]
[336803442,1725172238904,-500.0,0.00024999,2]
[336803443,1725172238913,-500.0,0.00024999,2]
[336803444,1725172238922,-500.0,0.00024999,2]
[336803445,1725172238932,-500.0,0.00024999,2]
[336803446,1725172238942,-178.6305508,0.00024999,2]
[336803447,1725172238951,-500.0,0.00024999,2]
[336803448,1725172238960,-500.0,0.00024999,2]
[336803449,1725172238969,-500.0,0.00024999,2]
[336803450,1725172238978,-500.0,0.00024999,2]
[336803451,1725172238987,-500.0,0.00024999,2]
[336803452,1725172238996,-500.0,0.00024999,2]
[336803453,1725172239005,-200.0,0.00025,2]
[336803454,1725172239015,-7471.34085846,0.00025,2]
[336803455,1725172239545,-198113.12305087,0.00025,2]
[336803456,1725172239555,-10770.7848187,0.00025,2]
[336803457,1725172239564,-12612.17687862,0.00025,2]
[336803458,1725172239576,-37028.67820427,0.00025,2]
[336803459,1725172239585,-219.58835007,0.00025073,2]
[336803460,1725172239595,-79088.53239565,0.0002509,2]
[336803461,1725172239606,-21552.97782126,0.0002509,2]
[336803462,1725172239619,-56258.64260364,0.0002509,2]
[336803468,1725172240500,-24077.21172912,0.0002509,2]
[336803469,1725172240509,-523.47370696,0.00026,2]
[336803470,1725172240519,-7458.94652043,0.0002649,2]
[336803471,1725172240527,-430.080283,0.00026607,2]
[336803472,1725172240537,-1954.7994104,0.00027089,2]
[336803473,1725172240546,-420.0,0.00027499,2]
[336803474,1725172240555,-2549.3742616,0.000275,2]
[336803476,1725172243442,-501.64921882,0.000275,2]
[336803484,1725172246396,-1000.0,0.000275,2]
[336803500,1725173168276,163.83441,0.00014247,2]
[336803525,1725173433250,-1954.7994104,0.00024783,2]
[336803526,1725173433273,-573.440377,0.00024899,2]
[336803527,1725173433296,-24900.0,0.0002497,2]
[336803528,1725173433319,-224.90514,0.00025065,2]
[336803529,1725173433342,-300.0,0.00025297,2]
[336803530,1725173433364,-28901.60611124,0.000275,2]
[336803531,1725173433389,-420.0,0.00027826,2]
[336803532,1725173433413,-215.13560374,0.000297,2]
[336803533,1725173433435,-3907.85057719,0.000298,3]
[336803534,1725173433457,-200.0,0.0003,60]
[336803535,1725173433480,-205.0,0.0003,2]
[336803549,1725173438674,-500.0,0.0003,120]
[336803551,1725173438684,-299.2987421,0.00030137,2]
[336803553,1725173438693,-194.4387601,0.00030137,2]
[336803555,1725173438703,-215.13560369,0.00030235,2]
[336803557,1725173438712,-443.7010837,0.00030411,2]
[336803559,1725173438721,-587.0,0.00030609,2]
[336803561,1725173438731,-215.13560369,0.0003077,2]
[336803563,1725173438740,-215.13560369,0.00031305,2]
[336803565,1725173438750,-500.0,0.00031446,2]
[336803567,1725173438760,-500.0,0.00031446,2]
[336803569,1725173438770,-500.0,0.00031446,2]
[336803571,1725173438779,-500.0,0.00031446,2]
[336803573,1725173438789,-244.54126601,0.00031446,2]
[336803575,1725173438798,-500.0,0.00031446,2]
[336803577,1725173438807,-500.0,0.00031446,2]
[336803579,1725173438817,-500.0,0.00031446,2]
[336803581,1725173438826,-500.0,0.00031446,2]
[336803583,1725173438835,-500.0,0.00031446,2]
[336803585,1725173438845,-500.0,0.00031446,2]
[336803587,1725173438855,-500.0,0.00031446,2]
[336803589,1725173438864,-500.0,0.00031446,2]
[336803591,1725173438874,-500.0,0.00031446,2]
[336803593,1725173438883,-500.0,0.00031491,7]
[336803595,1725173438892,-500.0,0.00031508,7]
[336803596,1725173438902,-800.0,0.00031522,7]
[336803597,1725173438911,-151.52689542,0.00031623,2]
[336803599,1725173438921,-500.0,0.00031632,7]
[336803601,1725173438930,-500.0,0.00031668,7]
[336803603,1725173438943,-500.0,0.00031694,7]